[Event "Titled Tuesday Blitz September 28 2021"]
[White "Pakleza, Zbigniew"]
[Black "Rogac, Srdjan"]
[WhiteFideId "1119290"]
[BlackFideId "920576"]
[WhiteElo "2526"]
[BlackElo "2389"]
[Result "1/2-1/2"]
[Round "05"]
[TimeControl "180+1"]
[Date "2021.09.28"]
[WhiteClock "0:00:07"]
[BlackClock "0:01:12"]

1. Nf3 {[%clk 0:03:00]}  Nf6 {[%clk 0:02:59]} 2. c4 {[%clk 0:03:00]}  e6 {[%clk 0:02:58]} 3. g3 {[%clk 0:02:57]}  b6 {[%clk 0:02:58]} 4. Bg2 {[%clk 0:02:57]}  Bb7 {[%clk 0:02:58]} 5. O-O {[%clk 0:02:58]}  Be7 {[%clk 0:02:58]} 6. Nc3 {[%clk 0:02:56]}  O-O {[%clk 0:02:58]} 7. d4 {[%clk 0:02:45]}  Ne4 {[%clk 0:02:57]} 8. Nxe4 {[%clk 0:02:28]}  Bxe4 {[%clk 0:02:56]} 9. Bf4 {[%clk 0:02:28]}  d6 {[%clk 0:02:55]} 10. Rc1 {[%clk 0:02:21]}  Nd7 {[%clk 0:02:54]} 11. Qd2 {[%clk 0:01:59]}  f5 {[%clk 0:02:52]} 12. Rfd1 {[%clk 0:01:58]}  Qe8 {[%clk 0:02:49]} 13. b4 {[%clk 0:01:46]}  a5 {[%clk 0:02:48]} 14. c5 {[%clk 0:01:47]}  axb4 {[%clk 0:02:48]} 15. cxd6 {[%clk 0:01:45]}  cxd6 {[%clk 0:02:47]} 16. Qxb4 {[%clk 0:01:28]}  Rxa2 {[%clk 0:02:39]} 17. Bxd6 {[%clk 0:01:25]}  Bxd6 {[%clk 0:02:35]} 18. Qxd6 {[%clk 0:01:26]}  Rxe2 {[%clk 0:02:33]} 19. Rc7 {[%clk 0:01:19]}  Nf6 {[%clk 0:02:32]} 20. Re7 {[%clk 0:01:09]}  Qc8 {[%clk 0:02:29]} 21. Ng5 {[%clk 0:01:02]}  Bxg2 {[%clk 0:02:26]} 22. Kxg2 {[%clk 0:01:03]}  Qc2 {[%clk 0:02:21]} 23. Rf1 {[%clk 0:00:49]}  Ng4 {[%clk 0:02:11]} 24. Kg1 {[%clk 0:00:16]}  Nxf2 {[%clk 0:01:36]} 25. Rxf2 {[%clk 0:00:15]}  Qc1+ {[%clk 0:01:32]} 26. Kg2 {[%clk 0:00:13]}  Rxf2+ {[%clk 0:01:31]} 27. Kxf2 {[%clk 0:00:14]}  Qxg5 {[%clk 0:01:31]} 28. Qxe6+ {[%clk 0:00:13]}  Kh8 {[%clk 0:01:27]} 29. Qf7 {[%clk 0:00:09]}  Qd2+ {[%clk 0:01:25]} 30. Kf1 {[%clk 0:00:09]}  Qd3+ {[%clk 0:01:23]} 31. Kg2 {[%clk 0:00:09]}  Qd2+ {[%clk 0:01:18]} 32. Kg1 {[%clk 0:00:08]}  Qd1+ {[%clk 0:01:17]} 33. Kg2 {[%clk 0:00:08]}  Qd2+ {[%clk 0:01:15]} 34. Kf1 {[%clk 0:00:07]}  Qd1+ {[%clk 0:01:13]} 35. Kg2 {[%clk 0:00:07]}  Qd2+ {[%clk 0:01:12]} 1/2-1/2


[Site "https://www.chess.com"]

[Event "Titled Tuesday Blitz September 28 2021"]
[White "Pichot, Alan"]
[Black "Parkhov, Yair"]
[WhiteFideId "110973"]
[BlackFideId "2813408"]
[WhiteElo "2600"]
[BlackElo "2131"]
[Result "1-0"]
[Round "05"]
[TimeControl "180+1"]
[Date "2021.09.28"]
[WhiteClock "0:00:05"]
[BlackClock "0:00:07"]

1. e4 {[%clk 0:03:00]}  e6 {[%clk 0:02:58]} 2. d4 {[%clk 0:03:00]}  d5 {[%clk 0:02:59]} 3. Nc3 {[%clk 0:03:01]}  Nf6 {[%clk 0:02:57]} 4. e5 {[%clk 0:03:01]}  Nfd7 {[%clk 0:02:57]} 5. Nce2 {[%clk 0:03:01]}  c5 {[%clk 0:02:56]} 6. c3 {[%clk 0:03:02]}  Nc6 {[%clk 0:02:56]} 7. Nf3 {[%clk 0:03:02]}  Qa5 {[%clk 0:02:55]} 8. Bf4 {[%clk 0:03:00]}  Be7 {[%clk 0:02:44]} 9. h4 {[%clk 0:02:58]}  h6 {[%clk 0:02:42]} 10. h5 {[%clk 0:02:56]}  b6 {[%clk 0:02:38]} 11. a3 {[%clk 0:02:44]}  c4 {[%clk 0:01:57]} 12. Rh3 {[%clk 0:02:38]}  Qb5 {[%clk 0:01:51]} 13. Qc2 {[%clk 0:02:34]}  Na5 {[%clk 0:01:50]} 14. Rg3 {[%clk 0:02:33]}  Bf8 {[%clk 0:01:50]} 15. Nc1 {[%clk 0:02:29]}  Qc6 {[%clk 0:01:41]} 16. Be2 {[%clk 0:02:26]}  Nb8 {[%clk 0:01:38]} 17. Be3 {[%clk 0:02:20]}  Bd7 {[%clk 0:01:38]} 18. Nd2 {[%clk 0:02:19]}  Qa4 {[%clk 0:01:32]} 19. Qb1 {[%clk 0:02:18]}  Nbc6 {[%clk 0:01:25]} 20. f4 {[%clk 0:02:17]}  Ne7 {[%clk 0:01:25]} 21. Bf2 {[%clk 0:02:13]}  O-O-O {[%clk 0:01:17]} 22. Rh3 {[%clk 0:02:11]}  f6 {[%clk 0:01:13]} 23. g4 {[%clk 0:01:57]}  fxe5 {[%clk 0:01:07]} 24. fxe5 {[%clk 0:01:57]}  Nec6 {[%clk 0:01:03]} 25. Bd1 {[%clk 0:01:53]}  Qb5 {[%clk 0:01:03]} 26. a4 {[%clk 0:01:54]}  Qa6 {[%clk 0:01:03]} 27. Ne2 {[%clk 0:01:50]}  Be7 {[%clk 0:00:59]} 28. Nf4 {[%clk 0:01:48]}  Bg5 {[%clk 0:00:54]} 29. Ng6 {[%clk 0:01:37]}  Rhe8 {[%clk 0:00:29]} 30. Nf3 {[%clk 0:01:30]}  Nb3 {[%clk 0:00:29]} 31. Ra3 {[%clk 0:00:54]}  Be7 {[%clk 0:00:24]} 32. Ra2 {[%clk 0:00:47]}  Kb8 {[%clk 0:00:19]} 33. Bc2 {[%clk 0:00:45]}  Nca5 {[%clk 0:00:18]} 34. Kf1 {[%clk 0:00:44]}  Bc6 {[%clk 0:00:16]} 35. Kg1 {[%clk 0:00:44]}  Qb7 {[%clk 0:00:17]} 36. Qd1 {[%clk 0:00:42]}  Rd7 {[%clk 0:00:16]} 37. Bg3 {[%clk 0:00:35]}  Ka8 {[%clk 0:00:16]} 38. Kg2 {[%clk 0:00:35]}  Bd8 {[%clk 0:00:15]} 39. Rh1 {[%clk 0:00:35]}  Rf7 {[%clk 0:00:15]} 40. Rf1 {[%clk 0:00:35]}  Qd7 {[%clk 0:00:15]} 41. Nh2 {[%clk 0:00:28]}  Rxf1 {[%clk 0:00:15]} 42. Nxf1 {[%clk 0:00:28]}  Bxa4 {[%clk 0:00:15]} 43. Ne3 {[%clk 0:00:28]}  Bc6 {[%clk 0:00:14]} 44. Qf3 {[%clk 0:00:26]}  b5 {[%clk 0:00:10]} 45. Kh2 {[%clk 0:00:15]}  Bb6 {[%clk 0:00:10]} 46. Qf4 {[%clk 0:00:12]}  Nb7 {[%clk 0:00:09]} 47. g5 {[%clk 0:00:10]}  hxg5 {[%clk 0:00:09]} 48. Qxg5 {[%clk 0:00:11]}  a5 {[%clk 0:00:09]} 49. Nf4 {[%clk 0:00:10]}  a4 {[%clk 0:00:09]} 50. Bg6 {[%clk 0:00:09]}  Rf8 {[%clk 0:00:08]} 51. Qg4 {[%clk 0:00:10]}  Nd8 {[%clk 0:00:07]} 52. Bh4 {[%clk 0:00:10]}  Nc1 {[%clk 0:00:03]} 53. Ra1 {[%clk 0:00:09]}  Nd3 {[%clk 0:00:03]} 54. Nxd3 {[%clk 0:00:08]}  cxd3 {[%clk 0:00:04]} 55. Bxd3 {[%clk 0:00:09]}  Kb7 {[%clk 0:00:04]} 56. Rf1 {[%clk 0:00:08]}  Rxf1 {[%clk 0:00:03]} 57. Nxf1 {[%clk 0:00:08]}  Qf7 {[%clk 0:00:03]} 58. Ne3 {[%clk 0:00:07]}  Qf8 {[%clk 0:00:02]} 59. Kg2 {[%clk 0:00:05]}  a3 {[%clk 0:00:02]} 60. bxa3 {[%clk 0:00:04]}  Bd7 {[%clk 0:00:03]} 61. Nc2 {[%clk 0:00:02]}  Qf7 {[%clk 0:00:03]} 62. Nb4 {[%clk 0:00:02]}  Qf8 {[%clk 0:00:03]} 63. Qf3 {[%clk 0:00:02]}  Qg8 {[%clk 0:00:02]} 64. Bg6 {[%clk 0:00:02]}  Nc6 {[%clk 0:00:02]} 65. Qe2 {[%clk 0:00:01]}  Na5 {[%clk 0:00:02]} 66. Qf3 {[%clk 0:00:01]}  Nc4 {[%clk 0:00:02]} 67. Be7 {[%clk 0:00:01]}  Nxa3 {[%clk 0:00:02]} 68. Qf8 {[%clk 0:00:02]}  Qxf8 {[%clk 0:00:02]} 69. Bxf8 {[%clk 0:00:03]}  Nc4 {[%clk 0:00:02]} 70. Bxg7 {[%clk 0:00:04]}  Ne3+ {[%clk 0:00:03]} 71. Kf3 {[%clk 0:00:04]}  Nd1 {[%clk 0:00:04]} 72. h6 {[%clk 0:00:04]}  Be8 {[%clk 0:00:04]} 73. Bxe8 {[%clk 0:00:04]}  Nxc3 {[%clk 0:00:04]} 74. h7 {[%clk 0:00:05]}  Bxd4 {[%clk 0:00:05]} 75. h8=Q {[%clk 0:00:05]}  Ne4 {[%clk 0:00:06]} 76. Bf6 {[%clk 0:00:05]}  Ng5+ {[%clk 0:00:07]} 77. Bxg5 {[%clk 0:00:05]}  Bxe5 {[%clk 0:00:07]} 78. Qxe5 {[%clk 0:00:05]} 1-0


[Site "https://www.chess.com"]

[Event "Titled Tuesday Blitz September 28 2021"]
[White "Pires, Marcos Vinicius Torsani"]
[Black "Borsuk, Konstantin"]
[WhiteFideId "2118939"]
[BlackFideId "14113406"]
[WhiteElo "2273"]
[BlackElo "2414"]
[Result "0-1"]
[Round "05"]
[TimeControl "180+1"]
[Date "2021.09.28"]
[WhiteClock "0:00:12"]
[BlackClock "0:00:05"]

1. e4 {[%clk 0:03:00]}  e6 {[%clk 0:02:57]} 2. d4 {[%clk 0:02:58]}  d5 {[%clk 0:02:57]} 3. exd5 {[%clk 0:02:58]}  exd5 {[%clk 0:02:57]} 4. Bd3 {[%clk 0:02:57]}  Nc6 {[%clk 0:02:55]} 5. c3 {[%clk 0:02:56]}  Bd6 {[%clk 0:02:53]} 6. Qf3 {[%clk 0:02:47]}  Nf6 {[%clk 0:02:49]} 7. h3 {[%clk 0:02:46]}  Be6 {[%clk 0:02:47]} 8. Ne2 {[%clk 0:02:45]}  Qd7 {[%clk 0:02:46]} 9. Bf4 {[%clk 0:02:43]}  O-O-O {[%clk 0:02:45]} 10. Nd2 {[%clk 0:02:41]}  Kb8 {[%clk 0:02:41]} 11. O-O-O {[%clk 0:02:39]}  Na5 {[%clk 0:02:39]} 12. Kb1 {[%clk 0:02:34]}  Qa4 {[%clk 0:02:31]} 13. Bc2 {[%clk 0:02:33]}  Qb5 {[%clk 0:02:30]} 14. Nc1 {[%clk 0:02:23]}  h6 {[%clk 0:02:22]} 15. Ncb3 {[%clk 0:02:14]}  Nc4 {[%clk 0:02:22]} 16. Nxc4 {[%clk 0:02:13]}  dxc4 {[%clk 0:02:23]} 17. Nd2 {[%clk 0:02:10]}  Ba3 {[%clk 0:02:19]} 18. b3 {[%clk 0:02:08]}  Bd6 {[%clk 0:02:05]} 19. Rhe1 {[%clk 0:01:52]}  Bxf4 {[%clk 0:01:52]} 20. Qxf4 {[%clk 0:01:52]}  Nd5 {[%clk 0:01:51]} 21. Qf3 {[%clk 0:01:45]}  Qa5 {[%clk 0:01:44]} 22. Kb2 {[%clk 0:01:39]}  cxb3 {[%clk 0:01:35]} 23. axb3 {[%clk 0:01:36]}  Rd6 {[%clk 0:01:34]} 24. Nc4 {[%clk 0:01:33]}  Qa6 {[%clk 0:01:32]} 25. Nxd6 {[%clk 0:01:32]}  Qxd6 {[%clk 0:01:33]} 26. Re5 {[%clk 0:01:27]}  Rd8 {[%clk 0:01:30]} 27. Rde1 {[%clk 0:01:25]}  a5 {[%clk 0:01:29]} 28. Bf5 {[%clk 0:01:23]}  Bxf5 {[%clk 0:01:15]} 29. Qxf5 {[%clk 0:01:22]}  a4 {[%clk 0:01:13]} 30. Qc2 {[%clk 0:00:51]}  a3+ {[%clk 0:00:57]} 31. Ka2 {[%clk 0:00:46]}  Ka7 {[%clk 0:00:42]} 32. Re8 {[%clk 0:00:37]}  Rxe8 {[%clk 0:00:30]} 33. Rxe8 {[%clk 0:00:38]}  Qc6 {[%clk 0:00:30]} 34. Re2 {[%clk 0:00:20]}  Nxc3+ {[%clk 0:00:28]} 35. Kxa3 {[%clk 0:00:21]}  Qa6+ {[%clk 0:00:27]} 36. Kb2 {[%clk 0:00:18]}  Nxe2 {[%clk 0:00:27]} 37. Qc5+ {[%clk 0:00:19]}  b6 {[%clk 0:00:15]} 38. Qxc7+ {[%clk 0:00:19]}  Qb7 {[%clk 0:00:16]} 39. Qc4 {[%clk 0:00:18]}  Nf4 {[%clk 0:00:10]} 40. Qa4+ {[%clk 0:00:18]}  Kb8 {[%clk 0:00:08]} 41. Qe8+ {[%clk 0:00:18]}  Qc8 {[%clk 0:00:08]} 42. Qe5+ {[%clk 0:00:19]}  Qc7 {[%clk 0:00:08]} 43. Qe8+ {[%clk 0:00:19]}  Kb7 {[%clk 0:00:08]} 44. Qe4+ {[%clk 0:00:19]}  Ka7 {[%clk 0:00:09]} 45. g3 {[%clk 0:00:17]}  Ne6 {[%clk 0:00:09]} 46. d5 {[%clk 0:00:17]}  Nc5 {[%clk 0:00:08]} 47. Qd4 {[%clk 0:00:17]}  f6 {[%clk 0:00:07]} 48. d6 {[%clk 0:00:17]}  Qd7 {[%clk 0:00:08]} 49. Qd5 {[%clk 0:00:17]}  Nb7 {[%clk 0:00:07]} 50. Kc3 {[%clk 0:00:15]}  Nxd6 {[%clk 0:00:05]} 51. Kb2 {[%clk 0:00:13]}  Kb8 {[%clk 0:00:04]} 52. g4 {[%clk 0:00:12]}  Qc7 {[%clk 0:00:04]} 53. f4 {[%clk 0:00:12]}  Nb7 {[%clk 0:00:05]} 54. Qg8+ {[%clk 0:00:13]}  Ka7 {[%clk 0:00:05]} 55. Qd5 {[%clk 0:00:14]}  Nc5 {[%clk 0:00:05]} 56. Qc4 {[%clk 0:00:13]}  Kb7 {[%clk 0:00:04]} 57. Qd5+ {[%clk 0:00:13]}  Ka7 {[%clk 0:00:05]} 58. Qc4 {[%clk 0:00:14]}  Na6 {[%clk 0:00:05]} 59. Qd5 {[%clk 0:00:14]}  Qxf4 {[%clk 0:00:05]} 60. Qd7+ {[%clk 0:00:13]}  Qc7 {[%clk 0:00:06]} 61. Qd3 {[%clk 0:00:13]}  Qe5+ {[%clk 0:00:05]} 62. Ka3 {[%clk 0:00:12]}  Qa1# {[%clk 0:00:05]} 0-1


[Site "https://www.chess.com"]

[Event "Titled Tuesday Blitz September 28 2021"]
[White "Samsonkin, Artiom"]
[Black "Potapova, Margarita"]
[WhiteFideId "13503111"]
[BlackFideId "14126869"]
[WhiteElo "2513"]
[BlackElo "2214"]
[Result "0-1"]
[Round "05"]
[TimeControl "180+1"]
[Date "2021.09.28"]
[WhiteClock "0:00:06"]
[BlackClock "0:00:10"]

1. e4 {[%clk 0:03:00]}  c5 {[%clk 0:02:56]} 2. Nf3 {[%clk 0:03:00]}  d6 {[%clk 0:02:57]} 3. d4 {[%clk 0:03:00]}  cxd4 {[%clk 0:02:58]} 4. Qxd4 {[%clk 0:03:01]}  Nc6 {[%clk 0:02:57]} 5. Qe3 {[%clk 0:03:01]}  g6 {[%clk 0:02:57]} 6. c4 {[%clk 0:02:59]}  Bg7 {[%clk 0:02:58]} 7. Be2 {[%clk 0:02:59]}  Nf6 {[%clk 0:02:58]} 8. O-O {[%clk 0:02:59]}  O-O {[%clk 0:02:59]} 9. Nc3 {[%clk 0:02:59]}  Nd7 {[%clk 0:02:59]} 10. Rd1 {[%clk 0:02:54]}  Nc5 {[%clk 0:02:58]} 11. Rb1 {[%clk 0:02:53]}  a5 {[%clk 0:02:58]} 12. b3 {[%clk 0:02:46]}  Bg4 {[%clk 0:02:56]} 13. Bb2 {[%clk 0:02:45]}  Bxf3 {[%clk 0:02:55]} 14. Bxf3 {[%clk 0:02:42]}  Ne6 {[%clk 0:02:55]} 15. Nd5 {[%clk 0:02:35]}  Bxb2 {[%clk 0:02:54]} 16. Rxb2 {[%clk 0:02:36]}  Nc5 {[%clk 0:02:46]} 17. Rbd2 {[%clk 0:02:29]}  e5 {[%clk 0:02:45]} 18. g3 {[%clk 0:02:16]}  Ne6 {[%clk 0:02:44]} 19. Bg2 {[%clk 0:02:11]}  Ned4 {[%clk 0:02:08]} 20. h4 {[%clk 0:02:10]}  Nb4 {[%clk 0:02:00]} 21. Nc3 {[%clk 0:01:51]}  Qf6 {[%clk 0:01:39]} 22. h5 {[%clk 0:01:45]}  g5 {[%clk 0:01:22]} 23. a3 {[%clk 0:01:25]}  Nbc6 {[%clk 0:01:19]} 24. Nd5 {[%clk 0:01:25]}  Qh6 {[%clk 0:01:14]} 25. b4 {[%clk 0:01:25]}  axb4 {[%clk 0:01:04]} 26. axb4 {[%clk 0:01:25]}  Kh8 {[%clk 0:00:56]} 27. b5 {[%clk 0:01:24]}  Nd8 {[%clk 0:00:55]} 28. Rxd4 {[%clk 0:01:15]}  exd4 {[%clk 0:00:55]} 29. Qxd4+ {[%clk 0:01:16]}  Qg7 {[%clk 0:00:55]} 30. Qb6 {[%clk 0:01:01]}  Ra1 {[%clk 0:00:53]} 31. Rxa1 {[%clk 0:00:59]}  Qxa1+ {[%clk 0:00:54]} 32. Kh2 {[%clk 0:01:00]}  Qg7 {[%clk 0:00:54]} 33. Qxd6 {[%clk 0:00:59]}  Ne6 {[%clk 0:00:53]} 34. c5 {[%clk 0:00:44]}  Rd8 {[%clk 0:00:42]} 35. Qe7 {[%clk 0:00:44]}  Qf8 {[%clk 0:00:38]} 36. Qf6+ {[%clk 0:00:33]}  Qg7 {[%clk 0:00:37]} 37. Qe7 {[%clk 0:00:32]}  Qf8 {[%clk 0:00:37]} 38. Qxb7 {[%clk 0:00:31]}  Nxc5 {[%clk 0:00:36]} 39. Qc7 {[%clk 0:00:32]}  Ne6 {[%clk 0:00:36]} 40. Qe5+ {[%clk 0:00:27]}  Qg7 {[%clk 0:00:36]} 41. Qf5 {[%clk 0:00:27]}  Nd4 {[%clk 0:00:35]} 42. Qg4 {[%clk 0:00:25]}  Nxb5 {[%clk 0:00:34]} 43. Ne3 {[%clk 0:00:17]}  Nd6 {[%clk 0:00:33]} 44. Qe2 {[%clk 0:00:09]}  Qe5 {[%clk 0:00:31]} 45. Ng4 {[%clk 0:00:08]}  Qd4 {[%clk 0:00:24]} 46. e5 {[%clk 0:00:08]}  Nf5 {[%clk 0:00:22]} 47. e6 {[%clk 0:00:08]}  fxe6 {[%clk 0:00:20]} 48. Qxe6 {[%clk 0:00:09]}  Ng7 {[%clk 0:00:20]} 49. Qe7 {[%clk 0:00:07]}  Qd6 {[%clk 0:00:19]} 50. Qxg5 {[%clk 0:00:08]}  Rg8 {[%clk 0:00:13]} 51. Nf6 {[%clk 0:00:07]}  Rf8 {[%clk 0:00:12]} 52. Ne4 {[%clk 0:00:07]}  Qd4 {[%clk 0:00:11]} 53. h6 {[%clk 0:00:07]}  Nf5 {[%clk 0:00:11]} 54. Qe7 {[%clk 0:00:08]}  Nxe7 {[%clk 0:00:10]} 55. f4 {[%clk 0:00:07]}  Nf5 {[%clk 0:00:10]} 56. g4 {[%clk 0:00:06]}  Ne3 {[%clk 0:00:10]} 57. g5 {[%clk 0:00:07]}  Nxg2 {[%clk 0:00:11]} 58. Ng3 {[%clk 0:00:06]}  Nxf4 {[%clk 0:00:10]} 0-1


[Site "https://www.chess.com"]

[Event "Titled Tuesday Blitz September 28 2021"]
[White "Sjugirov, Sanan"]
[Black "Seo, Jung Min"]
[WhiteFideId "4189302"]
[BlackFideId "1734687"]
[WhiteElo "2654"]
[BlackElo "2486"]
[Result "1-0"]
[Round "05"]
[TimeControl "180+1"]
[Date "2021.09.28"]
[WhiteClock "0:00:03"]
[BlackClock "0:00:01"]

1. e4 {[%clk 0:02:22]}  c5 {[%clk 0:02:59]} 2. Nf3 {[%clk 0:02:20]}  Nc6 {[%clk 0:02:59]} 3. Bb5 {[%clk 0:02:18]}  g6 {[%clk 0:02:56]} 4. Bxc6 {[%clk 0:02:18]}  dxc6 {[%clk 0:02:56]} 5. d3 {[%clk 0:02:17]}  Bg7 {[%clk 0:02:56]} 6. h3 {[%clk 0:02:17]}  Nf6 {[%clk 0:02:55]} 7. a4 {[%clk 0:02:17]}  a5 {[%clk 0:02:47]} 8. Be3 {[%clk 0:02:17]}  Nd7 {[%clk 0:02:47]} 9. Qc1 {[%clk 0:02:16]}  e5 {[%clk 0:02:41]} 10. Bh6 {[%clk 0:02:14]}  O-O {[%clk 0:02:37]} 11. O-O {[%clk 0:02:11]}  Qe7 {[%clk 0:02:36]} 12. Bxg7 {[%clk 0:02:04]}  Kxg7 {[%clk 0:02:36]} 13. Nc3 {[%clk 0:02:03]}  b6 {[%clk 0:02:34]} 14. Nh2 {[%clk 0:02:01]}  Re8 {[%clk 0:02:33]} 15. f4 {[%clk 0:01:59]}  exf4 {[%clk 0:02:33]} 16. Qxf4 {[%clk 0:01:59]}  Ne5 {[%clk 0:02:33]} 17. Rf2 {[%clk 0:01:54]}  Bd7 {[%clk 0:02:27]} 18. Raf1 {[%clk 0:01:53]}  Rf8 {[%clk 0:02:25]} 19. Qg3 {[%clk 0:01:40]}  Rae8 {[%clk 0:02:20]} 20. Nf3 {[%clk 0:01:27]}  Nxf3+ {[%clk 0:02:14]} 21. Rxf3 {[%clk 0:01:28]}  Qe5 {[%clk 0:02:13]} 22. Qxe5+ {[%clk 0:01:26]}  Rxe5 {[%clk 0:02:13]} 23. Nd1 {[%clk 0:01:22]}  f6 {[%clk 0:02:11]} 24. Ne3 {[%clk 0:01:21]}  Be6 {[%clk 0:02:10]} 25. b3 {[%clk 0:01:20]}  h5 {[%clk 0:02:08]} 26. Kh2 {[%clk 0:01:15]}  Rf7 {[%clk 0:02:05]} 27. Nc4 {[%clk 0:00:59]}  Bxc4 {[%clk 0:02:05]} 28. bxc4 {[%clk 0:01:00]}  Re8 {[%clk 0:02:01]} 29. g4 {[%clk 0:00:59]}  hxg4 {[%clk 0:01:57]} 30. hxg4 {[%clk 0:00:59]}  Ree7 {[%clk 0:01:51]} 31. Kg3 {[%clk 0:00:59]}  g5 {[%clk 0:01:48]} 32. Rb1 {[%clk 0:00:55]}  Rb7 {[%clk 0:01:47]} 33. Rff1 {[%clk 0:00:55]}  Rfe7 {[%clk 0:01:44]} 34. Rh1 {[%clk 0:00:48]}  Re8 {[%clk 0:01:42]} 35. Kf3 {[%clk 0:00:45]}  Rh8 {[%clk 0:01:14]} 36. Rh5 {[%clk 0:00:43]}  Rbb8 {[%clk 0:00:57]} 37. Kg3 {[%clk 0:00:22]}  Rh6 {[%clk 0:00:45]} 38. e5 {[%clk 0:00:19]}  Rxh5 {[%clk 0:00:33]} 39. exf6+ {[%clk 0:00:19]}  Kxf6 {[%clk 0:00:20]} 40. gxh5 {[%clk 0:00:19]}  Kf5 {[%clk 0:00:20]} 41. Rf1+ {[%clk 0:00:19]}  Ke5 {[%clk 0:00:20]} 42. Kg4 {[%clk 0:00:20]}  Kd4 {[%clk 0:00:20]} 43. h6 {[%clk 0:00:16]}  Kc3 {[%clk 0:00:20]} 44. Rf6 {[%clk 0:00:16]}  Rc8 {[%clk 0:00:19]} 45. h7 {[%clk 0:00:16]}  Kxc2 {[%clk 0:00:19]} 46. Kxg5 {[%clk 0:00:14]}  Kxd3 {[%clk 0:00:19]} 47. Rxc6 {[%clk 0:00:14]}  Rh8 {[%clk 0:00:19]} 48. Kg6 {[%clk 0:00:12]}  Kxc4 {[%clk 0:00:19]} 49. Rxb6 {[%clk 0:00:12]}  Kd3 {[%clk 0:00:19]} 50. Rb5 {[%clk 0:00:12]}  c4 {[%clk 0:00:19]} 51. Rxa5 {[%clk 0:00:12]}  c3 {[%clk 0:00:19]} 52. Rc5 {[%clk 0:00:11]}  Ra8 {[%clk 0:00:18]} 53. a5 {[%clk 0:00:09]}  c2 {[%clk 0:00:18]} 54. Kg7 {[%clk 0:00:07]}  Ra7+ {[%clk 0:00:18]} 55. Kh6 {[%clk 0:00:07]}  Ra8 {[%clk 0:00:18]} 56. Rc7 {[%clk 0:00:05]}  Kd2 {[%clk 0:00:17]} 57. Kg7 {[%clk 0:00:05]}  Ra7 {[%clk 0:00:12]} 58. Rxa7 {[%clk 0:00:05]}  c1=Q {[%clk 0:00:13]} 59. Rd7+ {[%clk 0:00:05]}  Ke2 {[%clk 0:00:09]} 60. Re7+ {[%clk 0:00:05]}  Kf3 {[%clk 0:00:09]} 61. h8=Q {[%clk 0:00:06]}  Qc3+ {[%clk 0:00:06]} 62. Kg8 {[%clk 0:00:06]}  Qc8+ {[%clk 0:00:06]} 63. Kh7 {[%clk 0:00:05]}  Qf5+ {[%clk 0:00:01]} 64. Kg7 {[%clk 0:00:05]}  Qg4+ {[%clk 0:00:01]} 65. Kf7 {[%clk 0:00:05]}  Qc4+ {[%clk 0:00:01]} 66. Re6 {[%clk 0:00:05]}  Qc7+ {[%clk 0:00:01]} 67. Kg6 {[%clk 0:00:05]}  Qc2+ {[%clk 0:00:02]} 68. Kh6 {[%clk 0:00:03]}  Qc1+ {[%clk 0:00:01]} 69. Kg7 {[%clk 0:00:03]}  Qc7+ {[%clk 0:00:01]} 70. Kg6 {[%clk 0:00:03]}  Qc2+ {[%clk 0:00:01]} 71. Kf7 {[%clk 0:00:03]} 1-0


[Site "https://www.chess.com"]

[Event "Titled Tuesday Blitz September 28 2021"]
[White "Skatchkov, Valery"]
[Black "Titichoca Daza, Daniel"]
[WhiteFideId "24195812"]
[BlackFideId "3309550"]
[WhiteElo "2195"]
[BlackElo "1980"]
[Result "1-0"]
[Round "05"]
[TimeControl "180+1"]
[Date "2021.09.28"]
[WhiteClock "0:00:03"]
[BlackClock "0:01:04"]

1. d4 {[%clk 0:01:43]}  Nf6 {[%clk 0:02:58]} 2. c4 {[%clk 0:01:43]}  e6 {[%clk 0:02:58]} 3. Nf3 {[%clk 0:01:43]}  b6 {[%clk 0:02:56]} 4. a3 {[%clk 0:01:40]}  c5 {[%clk 0:02:54]} 5. d5 {[%clk 0:01:40]}  exd5 {[%clk 0:02:54]} 6. cxd5 {[%clk 0:01:40]}  Ba6 {[%clk 0:02:54]} 7. Nc3 {[%clk 0:01:40]}  g6 {[%clk 0:02:51]} 8. g3 {[%clk 0:01:39]}  Bg7 {[%clk 0:02:52]} 9. Bg2 {[%clk 0:01:39]}  O-O {[%clk 0:02:52]} 10. O-O {[%clk 0:01:39]}  d6 {[%clk 0:02:53]} 11. Re1 {[%clk 0:01:39]}  Re8 {[%clk 0:02:50]} 12. Qc2 {[%clk 0:01:32]}  b5 {[%clk 0:02:49]} 13. b4 {[%clk 0:01:25]}  Nbd7 {[%clk 0:02:46]} 14. Bb2 {[%clk 0:01:22]}  Rc8 {[%clk 0:02:42]} 15. e4 {[%clk 0:01:04]}  Nb6 {[%clk 0:02:37]} 16. Qd3 {[%clk 0:00:55]}  Nc4 {[%clk 0:02:36]} 17. Bc1 {[%clk 0:00:52]}  Nd7 {[%clk 0:02:31]} 18. Bg5 {[%clk 0:00:50]}  Qc7 {[%clk 0:02:29]} 19. Rac1 {[%clk 0:00:27]}  Nxa3 {[%clk 0:02:27]} 20. bxc5 {[%clk 0:00:26]}  Nxc5 {[%clk 0:02:26]} 21. Qd1 {[%clk 0:00:16]}  Nc4 {[%clk 0:02:19]} 22. Nd4 {[%clk 0:00:14]}  Qb6 {[%clk 0:02:17]} 23. Rb1 {[%clk 0:00:13]}  b4 {[%clk 0:02:17]} 24. Na2 {[%clk 0:00:09]}  Na3 {[%clk 0:02:12]} 25. Rxb4 {[%clk 0:00:08]}  Qa5 {[%clk 0:02:12]} 26. Nc6 {[%clk 0:00:07]}  Rxc6 {[%clk 0:02:11]} 27. dxc6 {[%clk 0:00:07]}  Nd3 {[%clk 0:02:11]} 28. Ra4 {[%clk 0:00:06]}  Qb6 {[%clk 0:02:04]} 29. Rxa3 {[%clk 0:00:05]}  Nxe1 {[%clk 0:02:03]} 30. Qxe1 {[%clk 0:00:05]}  Qxc6 {[%clk 0:02:02]} 31. Nb4 {[%clk 0:00:06]}  Qc5 {[%clk 0:01:57]} 32. Be3 {[%clk 0:00:05]}  Qc4 {[%clk 0:01:49]} 33. Rxa6 {[%clk 0:00:06]}  Bc3 {[%clk 0:01:49]} 34. Qf1 {[%clk 0:00:05]}  Qxb4 {[%clk 0:01:46]} 35. Rxa7 {[%clk 0:00:05]}  Rb8 {[%clk 0:01:38]} 36. h3 {[%clk 0:00:05]}  Be5 {[%clk 0:01:37]} 37. Kh2 {[%clk 0:00:05]}  Qc3 {[%clk 0:01:37]} 38. Qd1 {[%clk 0:00:05]}  Rb2 {[%clk 0:01:25]} 39. Qd5 {[%clk 0:00:05]}  Qb3 {[%clk 0:01:17]} 40. Qxb3 {[%clk 0:00:03]}  Rxb3 {[%clk 0:01:17]} 41. Bh6 {[%clk 0:00:03]}  f6 {[%clk 0:01:14]} 42. f4 {[%clk 0:00:03]}  Bd4 {[%clk 0:01:13]} 43. Rg7+ {[%clk 0:00:03]}  Kf8 {[%clk 0:01:04]} 44. Rb7+ {[%clk 0:00:03]} 1-0


[Site "https://www.chess.com"]